Department Family,Entity,Date,Expense Type,Expense Area,Supplier,Transaction Number,Amount
DOH,London Ambulance Service NHS Trust,04/07/2011,Ensign Insurance Debtor,Control Accounts,QBE INTERNATIONAL INSURANCE T/A ENSIGN,DRD0017031,"207,175.83"
DOH,London Ambulance Service NHS Trust,18/07/2011,BP Control Account,Control Accounts,B.P. OIL,DRD0017056,"233,638.42"
DOH,London Ambulance Service NHS Trust,18/07/2011,CNST Contributions,Legal Services,NHSLA,DRD0017063,"68,198.00"
DOH,London Ambulance Service NHS Trust,18/07/2011,Liability to 3rd Party Scheme,Legal Services,NHSLA,DRD0017063,"17,223.00"
DOH,London Ambulance Service NHS Trust,18/07/2011,Property Expenses Scheme,Legal Services,NHSLA,DRD0017063,"2,417.00"
DOH,London Ambulance Service NHS Trust,22/07/2011,Busy Bee Childcare Vouchers,Control Accounts,BUSY BEES CHILDCARE LTD,DRD0017082,"27,616.29"
DOH,London Ambulance Service NHS Trust,22/07/2011,Child Care Arrangements,Payroll,BUSY BEES CHILDCARE LTD,DRD0017082,690.41
DOH,London Ambulance Service NHS Trust,22/07/2011,Electricity,Bloomsbury Estates,SCOTTISH AND SOUTHERN ELECTRIC,DRD0017083,-133.9
DOH,London Ambulance Service NHS Trust,22/07/2011,Electricity,LEA Bridge Road Estates,SCOTTISH AND SOUTHERN ELECTRIC,DRD0017083,681.69
DOH,London Ambulance Service NHS Trust,22/07/2011,Electricity,Tottenham Estates,SCOTTISH AND SOUTHERN ELECTRIC,DRD0017083,"4,342.98"
DOH,London Ambulance Service NHS Trust,22/07/2011,Electricity,Bounds Green Estates,SCOTTISH AND SOUTHERN ELECTRIC,DRD0017083,231.47
DOH,London Ambulance Service NHS Trust,22/07/2011,Electricity,Newham Estates,SCOTTISH AND SOUTHERN ELECTRIC,DRD0017083,"3,345.67"
DOH,London Ambulance Service NHS Trust,22/07/2011,Electricity,Ilford Estates,SCOTTISH AND SOUTHERN ELECTRIC,DRD0017083,"10,762.51"
DOH,London Ambulance Service NHS Trust,22/07/2011,Electricity,Hornchurch Estates,SCOTTISH AND SOUTHERN ELECTRIC,DRD0017083,493.48
DOH,London Ambulance Service NHS Trust,22/07/2011,Electricity,Richmond Estates,SCOTTISH AND SOUTHERN ELECTRIC,DRD0017083,626.48
DOH,London Ambulance Service NHS Trust,22/07/2011,Electricity,Hillingdon Estates,SCOTTISH AND SOUTHERN ELECTRIC,DRD0017083,"2,753.20"
DOH,London Ambulance Service NHS Trust,22/07/2011,Electricity,Hayes Estates,SCOTTISH AND SOUTHERN ELECTRIC,DRD0017083,487.74
DOH,London Ambulance Service NHS Trust,22/07/2011,Electricity,Pin and Middx Hosp Estates,SCOTTISH AND SOUTHERN ELECTRIC,DRD0017083,33.3
DOH,London Ambulance Service NHS Trust,22/07/2011,Electricity,Fulham Estates,SCOTTISH AND SOUTHERN ELECTRIC,DRD0017083,"2,038.40"
DOH,London Ambulance Service NHS Trust,22/07/2011,Electricity,Hanwell Estates,SCOTTISH AND SOUTHERN ELECTRIC,DRD0017083,"1,575.75"
DOH,London Ambulance Service NHS Trust,22/07/2011,Electricity,Brixton Estates,SCOTTISH AND SOUTHERN ELECTRIC,DRD0017083,754.11
DOH,London Ambulance Service NHS Trust,22/07/2011,Electricity,Wimbledon Estates,SCOTTISH AND SOUTHERN ELECTRIC,DRD0017083,530.73
DOH,London Ambulance Service NHS Trust,22/07/2011,Electricity,Barnehurst Estates,SCOTTISH AND SOUTHERN ELECTRIC,DRD0017083,"1,108.26"
DOH,London Ambulance Service NHS Trust,22/07/2011,Electricity,Bromley Estates,SCOTTISH AND SOUTHERN ELECTRIC,DRD0017083,"1,709.11"
DOH,London Ambulance Service NHS Trust,22/07/2011,Electricity,St Pauls Cray Estates,SCOTTISH AND SOUTHERN ELECTRIC,DRD0017083,579.82
DOH,London Ambulance Service NHS Trust,22/07/2011,Electricity,Malden Estates,SCOTTISH AND SOUTHERN ELECTRIC,DRD0017083,"2,012.40"
DOH,London Ambulance Service NHS Trust,22/07/2011,Electricity,Croydon Estates,SCOTTISH AND SOUTHERN ELECTRIC,DRD0017083,"1,371.09"
DOH,London Ambulance Service NHS Trust,22/07/2011,Electricity,Tolworth Estates,SCOTTISH AND SOUTHERN ELECTRIC,DRD0017083,100.92
DOH,London Ambulance Service NHS Trust,22/07/2011,Electricity,South Croydon Estates,SCOTTISH AND SOUTHERN ELECTRIC,DRD0017083,355.39
DOH,London Ambulance Service NHS Trust,22/07/2011,Electricity,Shoreditch Estates,SCOTTISH AND SOUTHERN ELECTRIC,DRD0017083,473.7
DOH,London Ambulance Service NHS Trust,22/07/2011,Electricity,Homerton Estates,SCOTTISH AND SOUTHERN ELECTRIC,DRD0017083,705.73
DOH,London Ambulance Service NHS Trust,22/07/2011,Electricity,Streatham Estates,SCOTTISH AND SOUTHERN ELECTRIC,DRD0017083,243.94
DOH,London Ambulance Service NHS Trust,22/07/2011,Electricity,Lee Estates,SCOTTISH AND SOUTHERN ELECTRIC,DRD0017083,379.32
DOH,London Ambulance Service NHS Trust,22/07/2011,Electricity,Whipps X FSP Crooked Billet,SCOTTISH AND SOUTHERN ELECTRIC,DRD0017083,512.24
DOH,London Ambulance Service NHS Trust,22/07/2011,Electricity,Cody Road Ambulance Station,SCOTTISH AND SOUTHERN ELECTRIC,DRD0017083,"2,365.63"
DOH,London Ambulance Service NHS Trust,22/07/2011,Electricity,Islington Amb (New st) Rev,SCOTTISH AND SOUTHERN ELECTRIC,DRD0017083,"1,436.64"
DOH,London Ambulance Service NHS Trust,22/07/2011,Electricity,HART WEST,SCOTTISH AND SOUTHERN ELECTRIC,DRD0017083,131.63
DOH,London Ambulance Service NHS Trust,26/07/2011,BOC Control Account,Control Accounts,BRITISH OXYGEN,DRD0017092,"115,973.31"
DOH,London Ambulance Service NHS Trust,28/07/2011,Lease Costs for All A&E vehicl,Deputy Director of Operations,SINGER AND FRIEDLANDER,DRD0017093,"423,574.49"
DOH,London Ambulance Service NHS Trust,28/07/2011,Finance lease Creds <1 year,Control Accounts,SINGER & FRIEDLANDER,DRD0017097,"30,165.70"
DOH,London Ambulance Service NHS Trust,29/07/2011,BP Control Account,Control Accounts,B.P. OIL,DRD0017101,"249,064.02"
DOH,London Ambulance Service NHS Trust,06/07/2011,Tyres,Fleet Support Services,ATS EUROMASTER LTD,943093,"58,635.95"
DOH,London Ambulance Service NHS Trust,06/07/2011,Technical Support - Contract,CTS contract,COMMUNICATION AND TECHNICAL SER,946432,"106,899.02"
DOH,London Ambulance Service NHS Trust,06/07/2011,Data Network Rental,IM&T Network Support,BRITSH TELECOM (BT) PLC,946448,"74,904.88"
DOH,London Ambulance Service NHS Trust,06/07/2011,Data Network Rental,IM&T Network Support,BT GLOBAL SERVICES,946501,"49,740.55"
DOH,London Ambulance Service NHS Trust,06/07/2011,Buildings,HART WEST,MILLANE CONTRACT SERVICES LTD,946595,"82,598.60"
DOH,London Ambulance Service NHS Trust,06/07/2011,Rent,ISON 50 CAD 2010 rev,EQUISYS PLC,947435,"31,687.50"
DOH,London Ambulance Service NHS Trust,06/07/2011,Service Charges,ISON 50 CAD 2010 rev,EQUISYS PLC,947435,"7,861.11"
DOH,London Ambulance Service NHS Trust,20/07/2011,Blanket Purchase,Head of Logistics,THOMAS KNEALE & CO LTD,947621,"38,128.20"
DOH,London Ambulance Service NHS Trust,20/07/2011,Other Legal Advice,Legal Services,BEACHCROFT LLP,947718,"1,949.00"
DOH,London Ambulance Service NHS Trust,20/07/2011,Legal Services ET Legal Costs,Legal Services,BEACHCROFT LLP,947718,"30,809.13"
DOH,London Ambulance Service NHS Trust,20/07/2011,Vehicle Purchase,SPPP506 Vehicle Fleet Reconfig,S.MACNEILLIE & SON LTD,947826,"74,109.20"
DOH,London Ambulance Service NHS Trust,20/07/2011,Tyres,Fleet Support Services,ATS EUROMASTER LTD,948166,"48,461.34"
DOH,London Ambulance Service NHS Trust,27/07/2011,Technical Support - Contract,CTS contract,COMMUNICATION AND TECHNICAL SER,948422,"106,899.02"
DOH,London Ambulance Service NHS Trust,06/07/2011,St John Ambulance Service,Deputy Director of Operations,ST JOHN AMBULANCE LONDONPRINCE,948582,"29,650.00"
DOH,London Ambulance Service NHS Trust,13/07/2011,St John Ambulance Service,Deputy Director of Operations,ST JOHN AMBULANCE LONDONPRINCE,948583,"30,250.00"
DOH,London Ambulance Service NHS Trust,13/07/2011,Cleaning of Premises,Head of Logistics,LIGHTBRIDGE SUPPORT SERVICES,948644,"83,083.41"
DOH,London Ambulance Service NHS Trust,27/07/2011,BT Phone Bills,Control Accounts,BT PLC,948740,"143,002.14"
DOH,London Ambulance Service NHS Trust,27/07/2011,BT Phone Bills,Control Accounts,BT PLC,948740,70.37
DOH,London Ambulance Service NHS Trust,20/07/2011,Buildings,SALIX PROJECTS,G&D HIGGINS MECHANICAL SERVICES LTD,949314,"28,100.05"
DOH,London Ambulance Service NHS Trust,27/07/2011,Computer Software,Director of PTS,3TC SOFTWARE LTD,949766,"35,928.00"
DOH,London Ambulance Service NHS Trust,27/07/2011,Buildings Reactive,Deptford Estates,ADVANCED ROOFING SERVICES LTD,949803,"37,543.96"
